[Event "Titled Tuesday Blitz October 31 Late 2023"]
[White "Rakitic2010"]
[Black "Janaszak, Dawid"]
[BlackFideId "1119206"]
[WhiteElo "2469"]
[BlackElo "2683"]
[Result "0-1"]
[Round "4"]
[TimeControl "180+1"]
[Date "2023.10.31"]
[WhiteClock "0:00:00"]
[BlackClock "0:00:24"]
[Board "62"]

1. e4 {[%clk 0:03:00]}  c5 {[%clk 0:02:59]} 2. Nf3 {[%clk 0:03:00]}  Nc6 {[%clk 0:02:59]} 3. d4 {[%clk 0:02:59]}  cxd4 {[%clk 0:03:00]} 4. Nxd4 {[%clk 0:03:00]}  g6 {[%clk 0:03:01]} 5. c4 {[%clk 0:02:58]}  e5 {[%clk 0:03:01]} 6. Nb5 {[%clk 0:02:57]}  d6 {[%clk 0:03:01]} 7. N1c3 {[%clk 0:02:52]}  a6 {[%clk 0:03:00]} 8. Bg5 {[%clk 0:02:51]}  f6 {[%clk 0:02:49]} 9. Be3 {[%clk 0:02:51]}  axb5 {[%clk 0:02:46]} 10. Nd5 {[%clk 0:02:51]}  Nd4 {[%clk 0:02:17]} 11. Bxd4 {[%clk 0:02:45]}  exd4 {[%clk 0:02:15]} 12. Qxd4 {[%clk 0:02:46]}  Bg7 {[%clk 0:02:03]} 13. cxb5 {[%clk 0:02:38]}  Ne7 {[%clk 0:01:53]} 14. Nb6 {[%clk 0:02:25]}  Rb8 {[%clk 0:01:32]} 15. Bc4 {[%clk 0:02:21]}  d5 {[%clk 0:01:27]} 16. exd5 {[%clk 0:02:16]}  Nf5 {[%clk 0:01:24]} 17. Qe4+ {[%clk 0:02:04]}  Kf8 {[%clk 0:01:21]} 18. O-O-O {[%clk 0:01:05]}  Qxb6 {[%clk 0:01:06]} 19. Rhe1 {[%clk 0:01:04]}  Bd7 {[%clk 0:00:59]} 20. g4 {[%clk 0:00:58]}  Re8 {[%clk 0:00:59]} 21. Qf3 {[%clk 0:00:46]}  Nd6 {[%clk 0:00:57]} 22. Qa3 {[%clk 0:00:31]}  Kf7 {[%clk 0:00:53]} 23. Re6 {[%clk 0:00:27]}  Bxe6 {[%clk 0:00:47]} 24. dxe6+ {[%clk 0:00:27]}  Ke7 {[%clk 0:00:48]} 25. g5 {[%clk 0:00:16]}  Rc8 {[%clk 0:00:45]} 26. b3 {[%clk 0:00:12]}  f5 {[%clk 0:00:45]} 27. Qb4 {[%clk 0:00:09]}  Rhd8 {[%clk 0:00:41]} 28. a4 {[%clk 0:00:10]}  Qxf2 {[%clk 0:00:41]} 29. Rd2 {[%clk 0:00:08]}  Qe1+ {[%clk 0:00:40]} 30. Kc2 {[%clk 0:00:06]}  Qe5 {[%clk 0:00:40]} 31. Kd1 {[%clk 0:00:04]}  Ke8 {[%clk 0:00:36]} 32. e7 {[%clk 0:00:03]}  Rd7 {[%clk 0:00:31]} 33. b6 {[%clk 0:00:02]}  Nxc4 {[%clk 0:00:28]} 34. Rxd7 {[%clk 0:00:00]}  Ne3+ {[%clk 0:00:24]} 0-1


[Site "https://www.chess.com"]

[Event "Titled Tuesday Blitz October 31 Late 2023"]
[White "Figorito, Nick"]
[Black "Rosen, Eric"]
[WhiteFideId "30923689"]
[BlackFideId "2032562"]
[WhiteElo "2434"]
[BlackElo "2674"]
[Result "1-0"]
[Round "4"]
[TimeControl "180+1"]
[Date "2023.10.31"]
[WhiteClock "0:00:07"]
[BlackClock "0:00:00"]
[Board "64"]

1. Nf3 {[%clk 0:03:00]}  d5 {[%clk 0:03:00]} 2. g3 {[%clk 0:03:01]}  Nf6 {[%clk 0:03:00]} 3. Bg2 {[%clk 0:03:01]}  e6 {[%clk 0:03:01]} 4. O-O {[%clk 0:03:01]}  Be7 {[%clk 0:03:01]} 5. d4 {[%clk 0:03:01]}  b5 {[%clk 0:02:57]} 6. Ne5 {[%clk 0:02:55]}  O-O {[%clk 0:02:56]} 7. c4 {[%clk 0:02:55]}  bxc4 {[%clk 0:02:52]} 8. Nxc4 {[%clk 0:02:54]}  Nbd7 {[%clk 0:02:31]} 9. Na5 {[%clk 0:02:43]}  c5 {[%clk 0:02:23]} 10. Nc6 {[%clk 0:02:42]}  Qe8 {[%clk 0:02:24]} 11. Nxe7+ {[%clk 0:02:29]}  Qxe7 {[%clk 0:02:24]} 12. dxc5 {[%clk 0:02:22]}  Nxc5 {[%clk 0:02:25]} 13. Nc3 {[%clk 0:02:19]}  Ba6 {[%clk 0:01:59]} 14. Bf4 {[%clk 0:02:04]}  Rac8 {[%clk 0:01:49]} 15. Rc1 {[%clk 0:01:58]}  Rfd8 {[%clk 0:01:49]} 16. Be5 {[%clk 0:01:53]}  Ncd7 {[%clk 0:01:32]} 17. Bd4 {[%clk 0:01:52]}  Nb6 {[%clk 0:01:30]} 18. Bxb6 {[%clk 0:01:48]}  axb6 {[%clk 0:01:30]} 19. Re1 {[%clk 0:01:47]}  h5 {[%clk 0:01:18]} 20. e3 {[%clk 0:01:46]}  h4 {[%clk 0:01:17]} 21. Qd4 {[%clk 0:01:46]}  Nd7 {[%clk 0:01:05]} 22. Na4 {[%clk 0:01:27]}  hxg3 {[%clk 0:00:52]} 23. hxg3 {[%clk 0:01:26]}  Qd6 {[%clk 0:00:53]} 24. e4 {[%clk 0:01:10]}  Bb7 {[%clk 0:00:29]} 25. exd5 {[%clk 0:01:06]}  Nc5 {[%clk 0:00:27]} 26. Nxc5 {[%clk 0:01:02]}  bxc5 {[%clk 0:00:27]} 27. Qe5 {[%clk 0:00:54]}  exd5 {[%clk 0:00:09]} 28. Qh5 {[%clk 0:00:25]}  Bc6 {[%clk 0:00:07]} 29. Rcd1 {[%clk 0:00:20]}  d4 {[%clk 0:00:07]} 30. Be4 {[%clk 0:00:17]}  Bxe4 {[%clk 0:00:06]} 31. Rxe4 {[%clk 0:00:17]}  Qd5 {[%clk 0:00:05]} 32. Re8+ {[%clk 0:00:15]}  Rxe8 {[%clk 0:00:04]} 33. Qxd5 {[%clk 0:00:15]}  Red8 {[%clk 0:00:03]} 34. Qc4 {[%clk 0:00:14]}  Kf8 {[%clk 0:00:02]} 35. b4 {[%clk 0:00:11]}  cxb4 {[%clk 0:00:02]} 36. Qxb4+ {[%clk 0:00:12]}  Kg8 {[%clk 0:00:02]} 37. Rxd4 {[%clk 0:00:12]}  Rxd4 {[%clk 0:00:02]} 38. Qxd4 {[%clk 0:00:13]}  Rf8 {[%clk 0:00:02]} 39. a4 {[%clk 0:00:13]}  f5 {[%clk 0:00:02]} 40. a5 {[%clk 0:00:12]}  f4 {[%clk 0:00:01]} 41. gxf4 {[%clk 0:00:11]}  g5 {[%clk 0:00:02]} 42. Qd5+ {[%clk 0:00:09]}  Kg7 {[%clk 0:00:02]} 43. Qxg5+ {[%clk 0:00:10]}  Kh7 {[%clk 0:00:00]} 44. Qe7+ {[%clk 0:00:07]} 1-0


[Site "https://www.chess.com"]

[Event "Titled Tuesday Blitz October 31 Late 2023"]
[White "Makaraci, Tunahan"]
[Black "Olsen, Filip Boe"]
[WhiteFideId "6356559"]
[BlackFideId "1440640"]
[WhiteElo "2430"]
[BlackElo "2671"]
[Result "1-0"]
[Round "4"]
[TimeControl "180+1"]
[Date "2023.10.31"]
[WhiteClock "0:00:02"]
[BlackClock "0:00:02"]
[Board "65"]

1. e4 {[%clk 0:03:00]}  c5 {[%clk 0:02:58]} 2. c3 {[%clk 0:03:01]}  d5 {[%clk 0:02:56]} 3. exd5 {[%clk 0:03:01]}  Nf6 {[%clk 0:02:52]} 4. Nf3 {[%clk 0:03:00]}  Nxd5 {[%clk 0:02:50]} 5. d4 {[%clk 0:02:59]}  cxd4 {[%clk 0:02:49]} 6. cxd4 {[%clk 0:02:59]}  g6 {[%clk 0:02:47]} 7. Nc3 {[%clk 0:02:59]}  Bg7 {[%clk 0:02:46]} 8. Bc4 {[%clk 0:02:59]}  Be6 {[%clk 0:02:45]} 9. Qb3 {[%clk 0:02:54]}  Nc7 {[%clk 0:02:33]} 10. Bxe6 {[%clk 0:02:28]}  Nxe6 {[%clk 0:02:34]} 11. Qxb7 {[%clk 0:02:27]}  Nd7 {[%clk 0:02:33]} 12. O-O {[%clk 0:02:25]}  O-O {[%clk 0:02:34]} 13. Be3 {[%clk 0:02:22]}  Nb6 {[%clk 0:02:19]} 14. Rfd1 {[%clk 0:02:08]}  Nc4 {[%clk 0:02:18]} 15. b3 {[%clk 0:02:04]}  Nd6 {[%clk 0:02:11]} 16. Qa6 {[%clk 0:01:58]}  Nf5 {[%clk 0:02:11]} 17. d5 {[%clk 0:01:35]}  Nc7 {[%clk 0:02:10]} 18. Qd3 {[%clk 0:01:33]}  Nxe3 {[%clk 0:01:58]} 19. Qxe3 {[%clk 0:01:25]}  Rc8 {[%clk 0:01:42]} 20. Rac1 {[%clk 0:01:24]}  Bxc3 {[%clk 0:01:41]} 21. Rxc3 {[%clk 0:01:23]}  Qd7 {[%clk 0:01:32]} 22. Ne5 {[%clk 0:01:17]}  Qf5 {[%clk 0:01:24]} 23. Nc6 {[%clk 0:01:11]}  Rce8 {[%clk 0:00:28]} 24. Nxe7+ {[%clk 0:00:36]}  Rxe7 {[%clk 0:00:29]} 25. Qxe7 {[%clk 0:00:37]}  Nxd5 {[%clk 0:00:29]} 26. Qc5 {[%clk 0:00:32]}  Nxc3 {[%clk 0:00:27]} 27. Qxc3 {[%clk 0:00:33]}  Rc8 {[%clk 0:00:27]} 28. Qe3 {[%clk 0:00:33]}  Qa5 {[%clk 0:00:23]} 29. a4 {[%clk 0:00:31]}  Qb6 {[%clk 0:00:22]} 30. Qxb6 {[%clk 0:00:28]}  axb6 {[%clk 0:00:23]} 31. Kf1 {[%clk 0:00:23]}  Rc2 {[%clk 0:00:19]} 32. Rd6 {[%clk 0:00:23]}  b5 {[%clk 0:00:16]} 33. axb5 {[%clk 0:00:20]}  Rc5 {[%clk 0:00:14]} 34. b6 {[%clk 0:00:16]}  Rb5 {[%clk 0:00:14]} 35. Ke2 {[%clk 0:00:16]}  Rxb3 {[%clk 0:00:15]} 36. Rc6 {[%clk 0:00:16]}  Kg7 {[%clk 0:00:15]} 37. g3 {[%clk 0:00:16]}  h5 {[%clk 0:00:15]} 38. h4 {[%clk 0:00:16]}  Rb2+ {[%clk 0:00:15]} 39. Ke3 {[%clk 0:00:16]}  Rb1 {[%clk 0:00:14]} 40. Kd4 {[%clk 0:00:15]}  Rb2 {[%clk 0:00:14]} 41. f4 {[%clk 0:00:14]}  Rb1 {[%clk 0:00:11]} 42. Kc5 {[%clk 0:00:14]}  Rb3 {[%clk 0:00:11]} 43. Rc7 {[%clk 0:00:12]}  Rxg3 {[%clk 0:00:06]} 44. b7 {[%clk 0:00:12]}  Rb3 {[%clk 0:00:07]} 45. Kc6 {[%clk 0:00:11]}  Kf6 {[%clk 0:00:08]} 46. Rc8 {[%clk 0:00:11]}  Kf5 {[%clk 0:00:08]} 47. Rf8 {[%clk 0:00:09]}  f6 {[%clk 0:00:06]} 48. Kc7 {[%clk 0:00:07]}  Rc3+ {[%clk 0:00:05]} 49. Kd7 {[%clk 0:00:08]}  Rb3 {[%clk 0:00:05]} 50. b8=Q {[%clk 0:00:07]}  Rxb8 {[%clk 0:00:06]} 51. Rxb8 {[%clk 0:00:07]}  Kxf4 {[%clk 0:00:06]} 52. Ke6 {[%clk 0:00:07]}  g5 {[%clk 0:00:06]} 53. Rb4+ {[%clk 0:00:06]}  Kg3 {[%clk 0:00:06]} 54. hxg5 {[%clk 0:00:04]}  fxg5 {[%clk 0:00:07]} 55. Kf5 {[%clk 0:00:04]}  h4 {[%clk 0:00:08]} 56. Rg4+ {[%clk 0:00:04]}  Kh2 {[%clk 0:00:06]} 57. Kxg5 {[%clk 0:00:04]}  h3 {[%clk 0:00:07]} 58. Kh4 {[%clk 0:00:04]}  Kh1 {[%clk 0:00:05]} 59. Rg3 {[%clk 0:00:02]}  h2 {[%clk 0:00:06]} 60. Ra3 {[%clk 0:00:02]}  Kg2 {[%clk 0:00:06]} 61. Ra2+ {[%clk 0:00:02]}  Kg1 {[%clk 0:00:05]} 62. Kg3 {[%clk 0:00:03]}  h1=Q {[%clk 0:00:02]} 63. Ra1# {[%clk 0:00:02]} 1-0


[Site "https://www.chess.com"]

[Event "Titled Tuesday Blitz October 31 Late 2023"]
[White "Korpics, Zsolt"]
[Black "reevecanada"]
[WhiteFideId "705241"]
[WhiteElo "2392"]
[BlackElo "2647"]
[Result "1-0"]
[Round "4"]
[TimeControl "180+1"]
[Date "2023.10.31"]
[WhiteClock "0:00:08"]
[BlackClock "0:00:07"]
[Board "69"]

1. e4 {[%clk 0:03:00]}  c5 {[%clk 0:02:34]} 2. Nf3 {[%clk 0:02:59]}  d6 {[%clk 0:02:33]} 3. Nc3 {[%clk 0:02:59]}  Nf6 {[%clk 0:02:32]} 4. e5 {[%clk 0:03:00]}  dxe5 {[%clk 0:02:32]} 5. Nxe5 {[%clk 0:03:00]}  Nbd7 {[%clk 0:02:32]} 6. d4 {[%clk 0:03:00]}  cxd4 {[%clk 0:02:31]} 7. Qxd4 {[%clk 0:02:59]}  Nxe5 {[%clk 0:02:31]} 8. Qxe5 {[%clk 0:02:58]}  e6 {[%clk 0:02:31]} 9. Bg5 {[%clk 0:02:52]}  a6 {[%clk 0:02:27]} 10. Rd1 {[%clk 0:02:49]}  Qb6 {[%clk 0:02:23]} 11. Bxf6 {[%clk 0:02:13]}  gxf6 {[%clk 0:02:24]} 12. Qxf6 {[%clk 0:02:13]}  Rg8 {[%clk 0:02:23]} 13. Qd4 {[%clk 0:01:38]}  Bc5 {[%clk 0:02:17]} 14. Qd2 {[%clk 0:01:26]}  Ke7 {[%clk 0:01:56]} 15. Ne4 {[%clk 0:01:04]}  Qc6 {[%clk 0:01:33]} 16. Qf4 {[%clk 0:01:00]}  Bb6 {[%clk 0:01:10]} 17. Rd6 {[%clk 0:00:21]}  Qc7 {[%clk 0:00:46]} 18. Qf6+ {[%clk 0:00:19]}  Ke8 {[%clk 0:00:45]} 19. Qe5 {[%clk 0:00:10]}  Rg6 {[%clk 0:00:26]} 20. Bb5+ {[%clk 0:00:05]}  axb5 {[%clk 0:00:23]} 21. Qxb5+ {[%clk 0:00:06]}  Kf8 {[%clk 0:00:23]} 22. Qxb6 {[%clk 0:00:06]}  Qxb6 {[%clk 0:00:14]} 23. Rxb6 {[%clk 0:00:07]}  Rxa2 {[%clk 0:00:12]} 24. O-O {[%clk 0:00:07]}  Ke7 {[%clk 0:00:12]} 25. Nd6 {[%clk 0:00:06]}  Bd7 {[%clk 0:00:13]} 26. Nxb7 {[%clk 0:00:06]}  h5 {[%clk 0:00:12]} 27. Nc5 {[%clk 0:00:06]}  Be8 {[%clk 0:00:12]} 28. Rb7+ {[%clk 0:00:06]}  Kf6 {[%clk 0:00:12]} 29. Ne4+ {[%clk 0:00:06]}  Ke5 {[%clk 0:00:11]} 30. f3 {[%clk 0:00:06]}  f5 {[%clk 0:00:11]} 31. Ng3 {[%clk 0:00:05]}  h4 {[%clk 0:00:11]} 32. Re1+ {[%clk 0:00:06]}  Kf4 {[%clk 0:00:11]} 33. Ne2+ {[%clk 0:00:06]}  Ke3 {[%clk 0:00:10]} 34. Nc3+ {[%clk 0:00:06]}  Kd2 {[%clk 0:00:09]} 35. Re2+ {[%clk 0:00:06]}  Kc1 {[%clk 0:00:10]} 36. Nxa2+ {[%clk 0:00:06]}  Kd1 {[%clk 0:00:10]} 37. Nc3+ {[%clk 0:00:07]}  Kc1 {[%clk 0:00:10]} 38. Ra7 {[%clk 0:00:07]}  Kxb2 {[%clk 0:00:10]} 39. Nd1+ {[%clk 0:00:08]}  Kc1 {[%clk 0:00:10]} 40. Ne3 {[%clk 0:00:08]}  h3 {[%clk 0:00:09]} 41. c4 {[%clk 0:00:09]}  Kb1 {[%clk 0:00:09]} 42. Raa2 {[%clk 0:00:09]}  f4 {[%clk 0:00:08]} 43. Rab2+ {[%clk 0:00:09]}  Ka1 {[%clk 0:00:08]} 44. Rbd2 {[%clk 0:00:08]}  Ba4 {[%clk 0:00:07]} 45. Re1+ {[%clk 0:00:08]}  Bd1 {[%clk 0:00:07]} 46. Rexd1# {[%clk 0:00:08]} 1-0


[Site "https://www.chess.com"]

[Event "Titled Tuesday Blitz October 31 Late 2023"]
[White "Matinian, Nikita"]
[Black "GAO"]
[WhiteFideId "24129100"]
[WhiteElo "2643"]
[BlackElo "2353"]
[Result "1-0"]
[Round "4"]
[TimeControl "180+1"]
[Date "2023.10.31"]
[WhiteClock "0:01:29"]
[BlackClock "0:01:07"]
[Board "72"]

1. e4 {[%clk 0:03:00]}  c5 {[%clk 0:02:58]} 2. Nf3 {[%clk 0:03:00]}  Nc6 {[%clk 0:02:59]} 3. Bb5 {[%clk 0:03:00]}  g6 {[%clk 0:02:58]} 4. O-O {[%clk 0:02:59]}  Bg7 {[%clk 0:02:58]} 5. d3 {[%clk 0:02:59]}  e5 {[%clk 0:02:56]} 6. a3 {[%clk 0:02:58]}  Nge7 {[%clk 0:02:53]} 7. b4 {[%clk 0:02:58]}  a6 {[%clk 0:02:52]} 8. Bxc6 {[%clk 0:02:48]}  Nxc6 {[%clk 0:02:36]} 9. bxc5 {[%clk 0:02:48]}  Qe7 {[%clk 0:02:34]} 10. Be3 {[%clk 0:02:46]}  Nd4 {[%clk 0:02:33]} 11. c3 {[%clk 0:02:39]}  Nxf3+ {[%clk 0:02:34]} 12. Qxf3 {[%clk 0:02:40]}  O-O {[%clk 0:02:34]} 13. Nd2 {[%clk 0:02:38]}  f5 {[%clk 0:02:32]} 14. exf5 {[%clk 0:02:37]}  gxf5 {[%clk 0:02:31]} 15. Qd5+ {[%clk 0:02:24]}  Kh8 {[%clk 0:02:30]} 16. Nc4 {[%clk 0:02:24]}  a5 {[%clk 0:02:08]} 17. Rfe1 {[%clk 0:02:15]}  Ra6 {[%clk 0:02:06]} 18. Bd4 {[%clk 0:02:13]}  Re6 {[%clk 0:01:56]} 19. Bxe5 {[%clk 0:02:13]}  b5 {[%clk 0:01:46]} 20. cxb6 {[%clk 0:02:04]}  Bb7 {[%clk 0:01:25]} 21. Qxb7 {[%clk 0:01:56]}  Bxe5 {[%clk 0:01:23]} 22. Rxe5 {[%clk 0:01:56]}  Rxe5 {[%clk 0:01:23]} 23. Nxe5 {[%clk 0:01:56]}  Qxe5 {[%clk 0:01:24]} 24. Qc7 {[%clk 0:01:37]}  Qd5 {[%clk 0:01:19]} 25. b7 {[%clk 0:01:32]}  Rg8 {[%clk 0:01:18]} 26. g3 {[%clk 0:01:32]}  f4 {[%clk 0:01:10]} 27. b8=Q {[%clk 0:01:30]}  fxg3 {[%clk 0:01:07]} 28. Qe5+ {[%clk 0:01:29]} 1-0


[Site "https://www.chess.com"]

[Event "Titled Tuesday Blitz October 31 Late 2023"]
[White "Schwabeneder, Florian"]
[Black "Kornyukov, Alexey"]
[WhiteFideId "1626191"]
[BlackFideId "4150457"]
[WhiteElo "2637"]
[BlackElo "2310"]
[Result "1-0"]
[Round "4"]
[TimeControl "180+1"]
[Date "2023.10.31"]
[WhiteClock "0:02:07"]
[BlackClock "0:00:00"]
[Board "74"]

1. e4 {[%clk 0:03:00]}  c5 {[%clk 0:02:56]} 2. Nc3 {[%clk 0:02:59]}  Nc6 {[%clk 0:02:55]} 3. g3 {[%clk 0:02:58]}  g6 {[%clk 0:02:54]} 4. Bg2 {[%clk 0:02:59]}  Bg7 {[%clk 0:02:55]} 5. Nge2 {[%clk 0:02:58]}  d6 {[%clk 0:02:51]} 6. d3 {[%clk 0:02:57]}  Rb8 {[%clk 0:02:50]} 7. a4 {[%clk 0:02:57]}  Nf6 {[%clk 0:02:45]} 8. O-O {[%clk 0:02:54]}  O-O {[%clk 0:02:45]} 9. h3 {[%clk 0:02:50]}  a6 {[%clk 0:02:41]} 10. f4 {[%clk 0:02:50]}  Nd7 {[%clk 0:02:14]} 11. Nd5 {[%clk 0:02:44]}  e6 {[%clk 0:02:11]} 12. Ne3 {[%clk 0:02:44]}  Qc7 {[%clk 0:01:49]} 13. f5 {[%clk 0:02:33]}  Qd8 {[%clk 0:01:32]} 14. Nf4 {[%clk 0:02:29]}  Nde5 {[%clk 0:01:28]} 15. c3 {[%clk 0:02:16]}  b5 {[%clk 0:01:21]} 16. axb5 {[%clk 0:02:15]}  axb5 {[%clk 0:01:22]} 17. Kh1 {[%clk 0:02:16]}  Qb6 {[%clk 0:00:29]} 18. f6 {[%clk 0:02:11]}  Bxf6 {[%clk 0:00:27]} 19. Nfd5 {[%clk 0:02:09]}  exd5 {[%clk 0:00:16]} 20. Nxd5 {[%clk 0:02:10]}  Qd8 {[%clk 0:00:13]} 21. Nxf6+ {[%clk 0:02:10]}  Kg7 {[%clk 0:00:00]} 22. Qd2 {[%clk 0:02:07]} 1-0


[Site "https://www.chess.com"]

[Event "Titled Tuesday Blitz October 31 Late 2023"]
[White "Pinheiro, Iung Alicio de O."]
[Black "Belenkaya, Dina"]
[WhiteFideId "2104350"]
[BlackFideId "24142654"]
[WhiteElo "2635"]
[BlackElo "2438"]
[Result "1-0"]
[Round "4"]
[TimeControl "180+1"]
[Date "2023.10.31"]
[WhiteClock "0:00:05"]
[BlackClock "0:00:00"]
[Board "79"]

1. d4 {[%clk 0:02:55]}  Nf6 {[%clk 0:02:59]} 2. Nf3 {[%clk 0:02:55]}  e6 {[%clk 0:02:58]} 3. Bg5 {[%clk 0:02:54]}  Be7 {[%clk 0:02:58]} 4. Nbd2 {[%clk 0:02:54]}  b6 {[%clk 0:02:53]} 5. e4 {[%clk 0:02:50]}  O-O {[%clk 0:02:52]} 6. Bd3 {[%clk 0:02:47]}  h6 {[%clk 0:02:49]} 7. Bxf6 {[%clk 0:02:24]}  Bxf6 {[%clk 0:02:49]} 8. Qe2 {[%clk 0:02:25]}  Bb7 {[%clk 0:02:46]} 9. h4 {[%clk 0:02:20]}  c5 {[%clk 0:02:24]} 10. e5 {[%clk 0:02:07]}  Be7 {[%clk 0:02:23]} 11. dxc5 {[%clk 0:01:52]}  bxc5 {[%clk 0:02:00]} 12. Nc4 {[%clk 0:01:40]}  d5 {[%clk 0:01:53]} 13. exd6 {[%clk 0:01:35]}  Bxd6 {[%clk 0:01:53]} 14. O-O-O {[%clk 0:01:35]}  Bf4+ {[%clk 0:01:49]} 15. Kb1 {[%clk 0:01:32]}  Qc7 {[%clk 0:01:40]} 16. g3 {[%clk 0:01:24]}  Nc6 {[%clk 0:01:20]} 17. gxf4 {[%clk 0:01:21]}  Qxf4 {[%clk 0:01:20]} 18. Rhg1 {[%clk 0:01:10]}  Nb4 {[%clk 0:01:13]} 19. Nfe5 {[%clk 0:01:04]}  Nxd3 {[%clk 0:01:07]} 20. Rxd3 {[%clk 0:00:49]}  Qxh4 {[%clk 0:00:32]} 21. Rdg3 {[%clk 0:00:42]}  g5 {[%clk 0:00:32]} 22. Nd6 {[%clk 0:00:30]}  Bd5 {[%clk 0:00:30]} 23. c4 {[%clk 0:00:26]}  Rad8 {[%clk 0:00:24]} 24. Nexf7 {[%clk 0:00:07]}  Be4+ {[%clk 0:00:18]} 25. Nxe4 {[%clk 0:00:06]}  Rxf7 {[%clk 0:00:18]} 26. Nc3 {[%clk 0:00:06]}  Re8 {[%clk 0:00:16]} 27. a3 {[%clk 0:00:06]}  e5 {[%clk 0:00:16]} 28. Qe4 {[%clk 0:00:05]}  Qxe4+ {[%clk 0:00:15]} 29. Nxe4 {[%clk 0:00:06]}  Rf4 {[%clk 0:00:15]} 30. f3 {[%clk 0:00:06]}  Rc8 {[%clk 0:00:14]} 31. Kc2 {[%clk 0:00:06]}  Kg7 {[%clk 0:00:14]} 32. Kd3 {[%clk 0:00:06]}  Kg6 {[%clk 0:00:15]} 33. Ke3 {[%clk 0:00:07]}  Rd8 {[%clk 0:00:14]} 34. b3 {[%clk 0:00:06]}  Rb8 {[%clk 0:00:14]} 35. Nd2 {[%clk 0:00:05]}  Rd4 {[%clk 0:00:13]} 36. Ke2 {[%clk 0:00:04]}  Rbd8 {[%clk 0:00:13]} 37. Ne4 {[%clk 0:00:04]}  Rd3 {[%clk 0:00:13]} 38. Rb1 {[%clk 0:00:04]}  Kf5 {[%clk 0:00:07]} 39. Rgg1 {[%clk 0:00:04]}  R3d4 {[%clk 0:00:04]} 40. Rh1 {[%clk 0:00:03]}  Rh8 {[%clk 0:00:04]} 41. Rhg1 {[%clk 0:00:03]}  Rb8 {[%clk 0:00:03]} 42. Nf2 {[%clk 0:00:03]}  Rbd8 {[%clk 0:00:03]} 43. Ne4 {[%clk 0:00:03]}  R8d7 {[%clk 0:00:02]} 44. Rh1 {[%clk 0:00:04]}  Rd8 {[%clk 0:00:02]} 45. Rxh6 {[%clk 0:00:04]}  Rf8 {[%clk 0:00:02]} 46. Rc6 {[%clk 0:00:04]}  Kf4 {[%clk 0:00:02]} 47. Rg1 {[%clk 0:00:04]}  Kf5 {[%clk 0:00:02]} 48. Rxg5+ {[%clk 0:00:04]}  Kf4 {[%clk 0:00:00]} 49. Rcg6 {[%clk 0:00:05]} 1-0


[Site "https://www.chess.com"]

[Event "Titled Tuesday Blitz October 31 Late 2023"]
[White "Ramadoss, Ashokkumar"]
[Black "Colas, Joshua"]
[WhiteFideId "5040990"]
[BlackFideId "2044447"]
[WhiteElo "2379"]
[BlackElo "2586"]
[Result "1/2-1/2"]
[Round "4"]
[TimeControl "180+1"]
[Date "2023.10.31"]
[WhiteClock "0:02:26"]
[BlackClock "0:02:41"]
[Board "85"]

1. Nf3 {[%clk 0:03:00]}  d5 {[%clk 0:02:54]} 2. c4 {[%clk 0:03:00]}  e6 {[%clk 0:02:50]} 3. Qc2 {[%clk 0:03:00]}  Nf6 {[%clk 0:02:49]} 4. d4 {[%clk 0:03:01]}  Be7 {[%clk 0:02:49]} 5. cxd5 {[%clk 0:03:01]}  exd5 {[%clk 0:02:49]} 6. Bg5 {[%clk 0:03:01]}  O-O {[%clk 0:02:50]} 7. e3 {[%clk 0:03:02]}  c6 {[%clk 0:02:50]} 8. Bd3 {[%clk 0:03:02]}  h6 {[%clk 0:02:50]} 9. Bh4 {[%clk 0:03:02]}  Re8 {[%clk 0:02:50]} 10. O-O {[%clk 0:03:02]}  Ne4 {[%clk 0:02:51]} 11. Bxe7 {[%clk 0:03:02]}  Qxe7 {[%clk 0:02:51]} 12. Nc3 {[%clk 0:03:02]}  Nd7 {[%clk 0:02:52]} 13. Rab1 {[%clk 0:03:02]}  Ndf6 {[%clk 0:02:51]} 14. b4 {[%clk 0:03:02]}  Bf5 {[%clk 0:02:48]} 15. Na4 {[%clk 0:02:41]}  Rec8 {[%clk 0:02:42]} 16. Nc5 {[%clk 0:02:41]}  b6 {[%clk 0:02:42]} 17. Na4 {[%clk 0:02:34]}  c5 {[%clk 0:02:41]} 18. bxc5 {[%clk 0:02:26]}  b5 {[%clk 0:02:41]} 1/2-1/2


[Site "https://www.chess.com"]

[Event "Titled Tuesday Blitz October 31 Late 2023"]
[White "Lalanne, Pablo"]
[Black "Sargsyan, Anna M."]
[WhiteFideId "112151"]
[BlackFideId "13308130"]
[WhiteElo "2329"]
[BlackElo "2564"]
[Result "1-0"]
[Round "4"]
[TimeControl "180+1"]
[Date "2023.10.31"]
[WhiteClock "0:00:07"]
[BlackClock "0:00:00"]
[Board "87"]

1. e4 {[%clk 0:03:00]}  c6 {[%clk 0:02:55]} 2. d4 {[%clk 0:03:00]}  d5 {[%clk 0:02:56]} 3. Nd2 {[%clk 0:03:00]}  dxe4 {[%clk 0:02:56]} 4. Nxe4 {[%clk 0:03:01]}  Nd7 {[%clk 0:02:56]} 5. Ng5 {[%clk 0:03:01]}  Ngf6 {[%clk 0:02:52]} 6. Bc4 {[%clk 0:03:01]}  e6 {[%clk 0:02:52]} 7. Qe2 {[%clk 0:03:00]}  Nb6 {[%clk 0:02:52]} 8. Bd3 {[%clk 0:03:00]}  Bd6 {[%clk 0:02:45]} 9. N1f3 {[%clk 0:02:53]}  O-O {[%clk 0:02:39]} 10. Bd2 {[%clk 0:02:48]}  Nbd5 {[%clk 0:02:38]} 11. Ne4 {[%clk 0:02:26]}  Nf4 {[%clk 0:02:32]} 12. Bxf4 {[%clk 0:02:21]}  Bxf4 {[%clk 0:02:33]} 13. g3 {[%clk 0:02:17]}  Bc7 {[%clk 0:02:32]} 14. O-O-O {[%clk 0:02:12]}  a5 {[%clk 0:02:23]} 15. Kb1 {[%clk 0:02:07]}  a4 {[%clk 0:02:21]} 16. a3 {[%clk 0:02:04]}  Nd5 {[%clk 0:02:03]} 17. h4 {[%clk 0:01:53]}  b5 {[%clk 0:02:02]} 18. Ne5 {[%clk 0:01:46]}  b4 {[%clk 0:01:48]} 19. Nxc6 {[%clk 0:01:32]}  Qe8 {[%clk 0:01:46]} 20. Nxb4 {[%clk 0:01:29]}  Nxb4 {[%clk 0:01:45]} 21. axb4 {[%clk 0:01:30]}  a3 {[%clk 0:01:45]} 22. b3 {[%clk 0:01:27]}  Qc6 {[%clk 0:01:40]} 23. Ka2 {[%clk 0:01:18]}  Qb6 {[%clk 0:01:21]} 24. c3 {[%clk 0:01:13]}  Bb7 {[%clk 0:01:19]} 25. Ng5 {[%clk 0:00:51]}  h6 {[%clk 0:01:13]} 26. Ne4 {[%clk 0:00:39]}  e5 {[%clk 0:01:10]} 27. Nc5 {[%clk 0:00:26]}  Bxh1 {[%clk 0:01:08]} 28. Rxh1 {[%clk 0:00:26]}  exd4 {[%clk 0:01:08]} 29. Qe4 {[%clk 0:00:20]}  Qg6 {[%clk 0:00:10]} 30. Qxd4 {[%clk 0:00:17]}  Qd6 {[%clk 0:00:04]} 31. Qe4 {[%clk 0:00:15]}  g6 {[%clk 0:00:03]} 32. h5 {[%clk 0:00:14]}  Rfe8 {[%clk 0:00:04]} 33. Qf3 {[%clk 0:00:13]}  g5 {[%clk 0:00:02]} 34. Bc4 {[%clk 0:00:11]}  Re7 {[%clk 0:00:02]} 35. Rb1 {[%clk 0:00:09]}  Rae8 {[%clk 0:00:01]} 36. Kxa3 {[%clk 0:00:08]}  Bb6 {[%clk 0:00:00]} 37. Nd3 {[%clk 0:00:07]} 1-0


[Site "https://www.chess.com"]